bitfinex/quotes_BTCUSD_20250412
["timestamp","ask_amount","ask_price","bid_price","bid_amount"]
[1744418480603,0.01892484,83441.0,83439.0,0.011984]
[1744418481817,0.01892484,83441.0,83440.0,0.239693]
[1744418482150,0.01892484,83441.0,83440.0,0.332293]
[1744418482151,0.00892484,83441.0,83440.0,0.332293]
[1744418482364,0.41879849,83445.0,83444.0,0.239681]
[1744418482571,0.42752506,83445.0,83444.0,0.239681]
[1744418487166,0.00872657,83445.0,83444.0,0.579681]
[1744418487470,0.002,83449.0,83447.0,0.579673]
[1744418487632,0.002,83449.0,83447.0,0.70051454]
[1744418488462,0.002,83449.0,83447.0,0.80885539]
[1744418489731,0.002,83449.0,83447.0,0.79431454]
[1744418490246,0.002,83449.0,83447.0,0.93623454]
[1744418490451,0.002,83449.0,83447.0,0.95077539]
[1744418490963,0.002,83449.0,83448.0,0.35454085]
[1744418491312,0.002,83449.0,83448.0,0.56918239]
[1744418498757,0.002,83449.0,83448.0,0.71106239]
[1744418499998,0.0004222,83458.0,83457.0,0.59418485]
[1744418500159,0.00046908,83458.0,83457.0,0.81112639]
[1744418500933,8e-08,83458.0,83457.0,0.81112639]
[1744418502692,8e-08,83458.0,83457.0,0.95300639]
[1744418504405,8e-08,83458.0,83457.0,0.40758554]
[1744418504620,8e-08,83458.0,83457.0,0.50236554]
[1744418505129,8e-08,83458.0,83457.0,0.84236554]
[1744418506302,8e-08,83458.0,83457.0,0.381524]
[1744418506677,8e-08,83458.0,83457.0,0.239644]
[1744418506839,8e-08,83458.0,83457.0,0.380684]
[1744418511721,8e-08,83458.0,83457.0,0.14104]
[1744418512057,0.011982,83452.0,83447.0,0.251653]
[1744418512264,0.011982,83457.0,83452.0,0.011982]
[1744418512625,0.161982,83457.0,83453.0,0.011982]
[1744418513671,0.401628,83457.0,83453.0,0.011982]
[1744418513872,0.401628,83457.0,83452.0,0.011982]
[1744418513873,0.011982,83456.0,83452.0,0.011982]
[1744418514044,0.011983,83445.0,83441.0,0.251674]
[1744418514341,0.011983,83448.0,83442.0,0.251669]
[1744418514557,0.011983,83447.0,83443.0,0.011984]
[1744418514762,0.021983,83447.0,83443.0,0.011984]
[1744418515275,0.01,83447.0,83446.0,0.239675]
[1744418515431,0.01,83447.0,83446.0,0.36051654]
[1744418515631,8e-08,83458.0,83456.0,0.239647]
[1744418515801,8e-08,83458.0,83455.0,0.011982]
[1744418515998,8e-08,83458.0,83446.0,0.13282454]
[1744418516204,8e-08,83458.0,83443.0,0.239682]
[1744418516205,0.011983,83448.0,83447.0,0.14108]
[1744418516407,0.251649,83450.0,83447.0,0.14108]
[1744418516680,0.251649,83450.0,83446.0,0.239675]
[1744418516838,0.251649,83450.0,83446.0,0.251658]
[1744418517041,0.251653,83448.0,83444.0,0.239679]
[1744418517226,0.011983,83448.0,83444.0,0.251663]
[1744418517436,0.251649,83450.0,83446.0,0.251658]
[1744418517637,0.411649,83450.0,83446.0,0.251658]
[1744418518590,0.011983,83448.0,83444.0,0.251663]
[1744418518894,0.021983,83448.0,83445.0,0.011983]
[1744418519090,0.01,83448.0,83445.0,0.251659]
[1744418519408,0.01,83448.0,83446.0,0.239673]
[1744418520501,0.01,83448.0,83442.0,0.39275]
[1744418520655,0.239675,83446.0,83442.0,0.39275]
[1744418520861,0.23967,83448.0,83442.0,0.39275]
[1744418521062,0.011983,83446.0,83443.0,0.011984]
[1744418521425,0.011983,83447.0,83444.0,0.011984]
[1744418521628,0.011983,83446.0,83442.0,0.14108]
[1744418521743,0.239693,83440.0,83432.0,0.011985]
[1744418521953,0.011985,83437.0,83434.0,0.14108]
[1744418522190,0.15,83437.0,83436.0,0.011985]
[1744418522532,0.15,83437.0,83435.0,0.239707]
[1744418522732,0.251659,83446.0,83441.0,0.251674]
[1744418522846,0.011983,83445.0,83441.0,0.251674]
[1744418523054,0.26037934,83444.0,83441.0,0.011984]
[1744418523409,0.011984,83443.0,83440.0,0.251675]
[1744418523707,0.00870999,83442.0,83441.0,0.011984]
[1744418524258,0.00870999,83442.0,83436.0,0.011985]
[1744418524259,0.011984,83442.0,83436.0,0.011985]
[1744418524461,0.251689,83437.0,83434.0,0.14108]
[1744418524656,0.00870831,83441.0,83425.0,0.239735]
[1744418524857,0.239739,83424.0,83423.0,0.000844]
[1744418525052,0.409739,83424.0,83423.0,0.000844]
[1744418525257,0.17865381,83424.0,83423.0,0.000844]
[1744418526218,0.5974523,83424.0,83423.0,0.0008908]
[1744418526360,0.6445523,83424.0,83423.0,0.0008908]
[1744418527941,0.5974523,83424.0,83423.0,0.0008908]
[1744418528818,0.00865381,83424.0,83423.0,0.0008908]
[1744418529023,0.41879849,83434.0,83431.0,0.011985]
[1744418529253,0.41879849,83434.0,83428.0,0.011986]
[1744418529254,0.41879849,83434.0,83429.0,0.011986]
[1744418529437,0.011985,83433.0,83429.0,0.011986]
[1744418529600,0.41879849,83434.0,83431.0,0.011985]
[1744418529794,0.41879849,83434.0,83432.0,0.239716]
[1744418530000,0.43078349,83434.0,83429.0,0.251708]
[1744418530269,0.43078349,83434.0,83430.0,0.011986]
[1744418531183,0.43078349,83434.0,83431.0,0.011985]
[1744418531384,0.011985,83432.0,83428.0,0.011986]
[1744418531587,0.251701,83433.0,83430.0,0.011986]
[1744418531884,0.011985,83433.0,83430.0,0.011986]
[1744418532297,0.41879849,83434.0,83431.0,0.251701]
[1744418532491,0.41879849,83434.0,83432.0,0.239714]
[1744418533578,0.011984,83442.0,83439.0,0.011984]
[1744418534092,0.251671,83442.0,83439.0,0.011984]
[1744418534611,0.011984,83441.0,83437.0,0.011985]
[1744418536461,0.011984,83444.0,83440.0,0.011984]
[1744418536668,0.25167,83443.0,83439.0,0.011984]
[1744418536930,0.011984,83441.0,83438.0,0.011984]
[1744418538671,0.251676,83441.0,83437.0,0.011985]
[1744418539272,0.011984,83440.0,83437.0,0.011985]
[1744418539862,0.011984,83440.0,83436.0,0.251688]
[1744418540063,0.00692358,83439.0,83436.0,0.251688]
[1744418540303,0.01890758,83439.0,83436.0,0.251688]
[1744418540612,0.01890758,83439.0,83436.0,0.011985]
[1744418544294,0.239715,83433.0,83425.0,0.251719]
[1744418544494,0.00692853,83432.0,83428.0,0.011986]
[1744418544696,0.239739,83424.0,83423.0,0.0008908]
[1744418544900,0.00691511,83424.0,83423.0,0.0008908]
[1744418545099,0.011986,83426.0,83423.0,0.0008908]
[1744418545325,0.00695611,83425.0,83423.0,0.2526168]
[1744418545723,0.41879849,83431.0,83428.0,0.011986]
[1744418545923,0.41879849,83431.0,83430.0,0.239721]
[1744418548631,0.41879849,83431.0,83430.0,0.675121]
[1744418549754,0.41879849,83431.0,83430.0,0.627821]
[1744418550160,0.41879849,83431.0,83430.0,0.34]
[1744418554093,0.011984,83439.0,83436.0,0.011985]
[1744418554257,0.00696787,83438.0,83436.0,0.011985]
[1744418554450,0.01696787,83438.0,83436.0,0.011985]
[1744418555260,0.01696787,83438.0,83436.0,0.251687]
[1744418557074,0.01,83438.0,83436.0,0.251687]
[1744418557811,0.00841151,83437.0,83436.0,0.251687]
[1744418564501,0.00772928,83437.0,83436.0,0.25917526]
[1744418564721,0.41879849,83441.0,83440.0,0.239693]
[1744418564978,0.41879849,83441.0,83440.0,0.24718126]
[1744418565191,0.42653112,83441.0,83440.0,0.24718126]
[1744418565934,0.42653112,83441.0,83440.0,0.00748826]
[1744418566344,0.59163112,83441.0,83440.0,0.00748826]
[1744418566543,0.54653112,83441.0,83440.0,0.00748826]
[1744418566853,0.55494892,83441.0,83440.0,0.00748826]
[1744418569556,0.011985,83435.0,83432.0,0.011985]
[1744418569780,0.011985,83435.0,81565.0,0.0126777]
[1744418569781,0.011986,83430.0,83425.0,0.34]
[1744418569902,0.239715,83433.0,83428.0,0.251712]
[1744418570111,0.251721,83426.0,83423.0,0.0008908]
[1744418570318,0.24744995,83425.0,83423.0,0.0008908]
[1744418570555,0.42744995,83425.0,83423.0,0.0008908]
[1744418570813,0.18771195,83425.0,83423.0,0.0008908]
[1744418571530,0.18771195,83425.0,83424.0,0.00748885]
[1744418572931,0.42744795,83425.0,83424.0,0.00748885]
[1744418573434,0.42744795,83425.0,83423.0,0.0008908]
[1744418573853,0.18771195,83425.0,83423.0,0.0008908]
[1744418574691,0.60651044,83425.0,83423.0,0.0008908]
[1744418577209,0.84624844,83425.0,83423.0,0.0008908]
[1744418577416,0.12084154,83424.0,83423.0,0.0008908]
[1744418577618,0.33568418,83424.0,83423.0,0.0008908]
[1744418578291,0.34771642,83424.0,83423.0,0.0008908]
[1744418578750,0.35612477,83424.0,83423.0,0.0008908]
[1744418580367,0.94275174,83424.0,83423.0,0.0008908]
[1744418580569,0.94275174,83424.0,83414.0,0.000844]
[1744418580570,0.011987,83417.0,83414.0,0.000844]
[1744418580732,0.0469,83415.0,83414.0,0.0008909]
[1744418580939,0.78225622,83415.0,83414.0,0.0008909]
[1744418581579,0.79679707,83415.0,83414.0,0.0008909]
[1744418581779,0.80520542,83415.0,83414.0,0.0008909]
[1744418582027,0.79066457,83415.0,83414.0,0.0008909]
[1744418582310,0.73465222,83415.0,83414.0,0.0008909]
[1744418582502,0.60540233,83415.0,83414.0,0.0008909]
[1744418586144,0.18749464,83415.0,83414.0,0.0493909]
[1744418586367,0.00749464,83415.0,83414.0,0.0493909]
[1744418586693,0.41790769,83422.0,83419.0,0.011987]
[1744418586893,0.41790769,83422.0,83421.0,0.333947]
[1744418587051,0.41790769,83422.0,83421.0,0.34143768]
[1744418587483,0.41790769,83422.0,83421.0,0.333947]
[1744418588291,0.41790769,83422.0,83421.0,0.0942]
[1744418588491,0.41790769,83422.0,83421.0,0.333947]
[1744418589456,0.011986,83428.0,83425.0,0.251722]
[1744418589790,0.021986,83428.0,83425.0,0.251722]
[1744418591858,0.01,83428.0,83426.0,0.23973]
[1744418592848,0.01,83428.0,83425.0,0.251722]
[1744418593050,0.01,83428.0,83425.0,0.011986]
[1744418593232,0.011986,83427.0,83423.0,0.239741]
[1744418593432,0.011986,83427.0,83423.0,0.251728]
[1744418593647,0.251713,83429.0,83424.0,0.011986]
[1744418594463,0.251713,83429.0,83425.0,0.251722]
[1744418594681,0.011986,83429.0,83426.0,0.011986]
[1744418595213,0.011986,83426.0,83420.0,0.011987]
[1744418595434,0.011986,83427.0,83423.0,0.011987]
[1744418595607,0.41790769,83430.0,83428.0,0.239727]
[1744418595755,0.42790769,83430.0,83428.0,0.239727]
[1744418596108,0.011986,83428.0,83425.0,0.011986]
[1744418596286,0.01,83428.0,83426.0,0.011986]
[1744418596483,0.01,83428.0,83426.0,0.01947478]
[1744418596869,0.01,83428.0,83427.0,0.00748878]
[1744418600013,0.01641335,83428.0,83427.0,0.00748878]
[1744418603861,0.25614035,83428.0,83427.0,0.00748878]
[1744418605351,0.54701037,83428.0,83427.0,0.00748878]
[1744418605682,0.239762,83416.0,83415.0,0.00748878]
[1744418605870,0.409762,83416.0,83415.0,0.00748878]
[1744418606027,0.41480462,83416.0,83415.0,0.00748878]
[1744418606674,0.41480462,83416.0,83414.0,0.0008909]
[1744418606881,0.83271231,83416.0,83414.0,0.0008909]
[1744418607080,0.12084154,83415.0,83414.0,0.0008909]
[1744418607397,0.30588248,83415.0,83414.0,0.0008909]
[1744418610794,0.18504094,83415.0,83414.0,0.0008909]
[1744418611600,0.00504094,83415.0,83414.0,0.0008909]
[1744418611799,0.00504094,83415.0,83414.0,0.00838074]
[1744418625606,0.40480594,83415.0,83414.0,0.00838074]
[1744418625805,0.16504094,83415.0,83414.0,0.00838074]
[1744418626169,0.16504094,83415.0,83414.0,0.29464774]
[1744418626170,0.00504094,83415.0,83414.0,0.29464774]
[1744418626358,0.41790769,83416.0,83414.0,0.29464774]
[1744418626552,0.41790769,83416.0,83415.0,0.34748984]
[1744418630278,0.011986,83427.0,83424.0,0.011986]
[1744418630688,0.00501,83426.0,83424.0,0.011986]
[1744418631087,0.00501,83426.0,83425.0,0.00748984]
[1744418635670,0.011986,83428.0,83425.0,0.01947584]
[1744418636269,0.011986,83428.0,83426.0,0.00748984]
[1744418636797,0.011986,83428.0,83427.0,0.00748984]
[1744418638482,0.171986,83428.0,83427.0,0.00748984]
[1744418639868,0.011986,83426.0,83423.0,0.011987]
[1744418640076,0.171986,83426.0,83423.0,0.011987]
[1744418640475,0.16,83426.0,83423.0,0.251728]
[1744418640690,0.16,83426.0,83425.0,0.239736]
[1744418640888,0.16,83426.0,83425.0,0.284836]
[1744418641120,0.41790769,83442.0,83440.0,0.23969]
[1744418641449,0.011983,83447.0,83442.0,0.011984]
[1744418641623,0.121983,83447.0,83442.0,0.251668]
[1744418641768,0.121983,83447.0,83443.0,0.01947354]
[1744418642364,0.121983,83447.0,83444.0,0.00748954]
[1744418642869,0.121983,83447.0,83445.0,0.00748954]
[1744418643294,0.121983,83447.0,83446.0,0.00748954]
[1744418643489,0.121983,83447.0,83445.0,0.00748954]
[1744418644251,0.121983,83447.0,83446.0,0.00748954]
[1744418645055,0.12682991,83447.0,83446.0,0.00748954]
[1744418645285,0.12682991,83447.0,83444.0,0.01947354]
[1744418646020,0.12682991,83447.0,83444.0,0.011984]
[1744418647156,0.12682991,83447.0,83444.0,0.01947354]
[1744418648789,0.12682991,83447.0,83444.0,0.011984]
[1744418649279,0.239681,83444.0,83443.0,0.00748954]
[1744418649451,0.58802254,83444.0,83443.0,0.00748954]
[1744418649654,1.02530289,83444.0,83443.0,0.00748954]
[1744418649839,0.011987,83417.0,83411.0,0.011988]
[1744418650178,0.16,83417.0,83416.0,0.011988]
[1744418650410,0.1649507,83417.0,83415.0,0.011988]
[1744418651018,0.1649507,83417.0,83414.0,0.2526439]
[1744418651157,0.1649507,83417.0,83414.0,0.0128789]
[1744418652536,0.1649507,83417.0,83416.0,0.239762]
[1744418654352,0.0049507,83417.0,83416.0,0.239762]
[1744418654552,0.011987,83419.0,83416.0,0.25175]
[1744418654853,0.00490244,83418.0,83416.0,0.25175]
[1744418655267,0.19490244,83418.0,83416.0,0.25175]
[1744418655420,0.00490244,83418.0,83416.0,0.25175]
[1744418656268,0.41041815,83422.0,83421.0,0.239747]
[1744418659781,0.011986,83429.0,83426.0,0.251718]
[1744418660047,0.00476859,83428.0,83426.0,0.251718]
[1744418660251,0.15476859,83428.0,83426.0,0.251718]
[1744418665154,0.15476859,83428.0,83427.0,0.047]
[1744418667773,0.011986,83424.0,83417.0,0.047]
[1744418668011,0.011987,83422.0,83418.0,0.011987]
[1744418668184,0.00472481,83421.0,83419.0,0.011987]
[1744418668387,0.26645881,83421.0,83418.0,0.011987]
[1744418668612,0.01472481,83421.0,83418.0,0.251741]
[1744418669616,0.011987,83420.0,83414.0,0.0008909]
[1744418669894,0.00472145,83419.0,83416.0,0.011988]
[1744418670256,0.15472145,83419.0,83416.0,0.011988]
[1744418670675,0.15472145,83419.0,83416.0,0.251747]
[1744418670858,0.15472145,83419.0,83417.0,0.239756]
[1744418671088,0.66210915,83436.0,83431.0,0.011985]
[1744418671292,0.011985,83432.0,83428.0,0.251711]
[1744418671502,0.011986,83429.0,83425.0,0.011986]
[1744418671707,0.171986,83429.0,83425.0,0.011986]
[1744418672061,0.171986,83429.0,83426.0,0.011986]
[1744418672062,0.15,83429.0,83426.0,0.011986]
[1744418672266,0.011986,83428.0,83423.0,0.251726]
[1744418672584,0.161986,83428.0,83424.0,0.011986]
[1744418673438,0.251702,83432.0,83426.0,0.011986]
[1744418673552,0.431702,83432.0,83428.0,0.011986]
[1744418674373,0.011985,83431.0,83428.0,0.011986]
[1744418675138,0.011985,83431.0,83427.0,0.011986]
[1744418676388,0.011986,83430.0,83427.0,0.011986]
[1744418676943,0.011985,83431.0,83428.0,0.011986]
[1744418677840,0.011986,83430.0,83427.0,0.011986]
[1744418678846,0.251706,83431.0,83428.0,0.011986]
[1744418678847,0.011985,83431.0,83428.0,0.011986]
[1744418681552,0.42240315,83432.0,83429.0,0.011986]
[1744418684305,0.41041815,83432.0,83430.0,0.239721]
[1744418688646,0.011985,83431.0,83427.0,0.011986]
[1744418689022,0.181985,83431.0,83427.0,0.011986]
[1744418689226,0.181985,83431.0,83427.0,0.251714]
[1744418689425,0.181985,83431.0,83428.0,0.011986]
[1744418689923,0.181985,83431.0,83428.0,0.251711]
[1744418691675,0.251707,83430.0,83426.0,0.011986]
[1744418691893,0.421707,83430.0,83426.0,0.011986]
[1744418692061,0.181986,83430.0,83426.0,0.251717]
[1744418692260,0.008413,83429.0,83426.0,0.251717]
[1744418692594,0.178413,83429.0,83426.0,0.251717]
[1744418693134,0.008413,83428.0,83426.0,0.251717]
[1744418693288,0.188413,83428.0,83426.0,0.251717]
[1744418693641,0.008413,83427.0,83426.0,0.251717]
[1744418693799,0.178413,83427.0,83426.0,0.251717]
[1744418694508,0.008413,83427.0,83426.0,0.251717]
[1744418695037,0.008413,83427.0,83426.0,0.25920572]
[1744418695245,0.008413,83427.0,83426.0,0.30490572]
[1744418695665,0.41041815,83432.0,83430.0,0.239721]
[1744418696183,0.41041815,83432.0,83431.0,0.00748872]
[1744418697115,0.41041815,83432.0,83429.0,0.011986]
[1744418698882,0.41041815,83432.0,83429.0,0.251709]
[1744418699099,0.41041815,83432.0,83430.0,0.00748874]
[1744418699676,0.41041815,83432.0,83431.0,0.00748874]
[1744418700318,0.59883327,83432.0,83431.0,0.00748874]
[1744418701450,0.011986,83428.0,83424.0,0.251723]
[1744418701644,0.041986,83428.0,83424.0,0.251723]
[1744418702253,0.041986,83428.0,83425.0,0.00748903]
[1744418702472,0.041986,83428.0,83426.0,0.00748903]
[1744418702992,0.041986,83428.0,83427.0,0.00748903]
[1744418703618,0.05040492,83428.0,83427.0,0.00748903]
[1744418705774,0.03841892,83428.0,83427.0,0.00748903]
[1744418705973,0.03841892,83428.0,83425.0,0.251719]
[1744418706826,0.03,83428.0,83425.0,0.251719]
[1744418707607,0.00841843,83427.0,83425.0,0.251719]
[1744418708492,0.41041815,83432.0,83428.0,0.239727]
[1744418708666,0.42041815,83432.0,83430.0,0.239719]
[1744418709419,0.42041815,83432.0,83431.0,0.0916]
[1744418709420,0.41041815,83432.0,83431.0,0.0916]
[1744418709588,0.011983,83446.0,83442.0,0.011984]
[1744418709737,0.011983,83445.0,83442.0,0.011984]
[1744418709931,0.181983,83445.0,83443.0,0.00748777]
[1744418710169,0.00841681,83444.0,83443.0,0.00748777]
[1744418710375,0.15841681,83444.0,83440.0,0.251677]
[1744418710578,0.15841681,83444.0,83443.0,0.00748789]
[1744418710786,0.15,83444.0,83441.0,0.24717485]
[1744418710988,0.15,83444.0,83442.0,0.00748785]
[1744418711330,0.15,83444.0,83443.0,0.00748785]
[1744418711530,0.15841592,83444.0,83443.0,0.00748785]
[1744418715389,0.56883407,83444.0,83443.0,0.00748785]
[1744418715949,0.011984,83440.0,83435.0,0.011985]
[1744418716166,0.071984,83440.0,83435.0,0.011985]
[1744418716374,0.00841592,83439.0,83437.0,0.011985]
[1744418716529,0.02841592,83439.0,83437.0,0.251684]
[1744418717329,0.02841592,83439.0,83438.0,0.00748824]
[1744418717558,0.02,83439.0,83438.0,0.00748824]
[1744418718132,0.02,83439.0,83436.0,0.011985]
[1744418718585,0.271682,83439.0,83434.0,0.251695]
[1744418718785,0.271682,83439.0,83435.0,0.011985]
[1744418719310,0.00841256,83438.0,83435.0,0.011985]
[1744418719520,0.04841256,83438.0,83435.0,0.011985]
[1744418719879,0.23971,83434.0,83432.0,4.69e-05]
[1744418720080,0.40971,83434.0,83432.0,4.69e-05]
[1744418720916,0.17,83434.0,83432.0,4.69e-05]
[1744418726487,0.409712,83434.0,83432.0,4.69e-05]
[1744418727881,0.17,83434.0,83432.0,0.2397599]
[1744418728224,0.17,83434.0,83433.0,0.0486]
[1744418729418,0.41041815,83444.0,83443.0,0.239684]
[1744418729565,0.57041815,83444.0,83443.0,0.239684]
[1744418729971,0.57041815,83444.0,83443.0,0.2471719]
[1744418733042,0.16,83444.0,83443.0,0.2471719]
[1744418733972,0.011985,83435.0,83432.0,4.69e-05]
[1744418734124,0.411693,83435.0,83432.0,4.69e-05]
[1744418734941,0.239713,83433.0,83432.0,4.69e-05]
[1744418735286,0.399713,83433.0,83432.0,4.69e-05]
[1744418736147,0.399713,83433.0,83432.0,0.00753532]
[1744418738614,0.56805454,83433.0,83432.0,0.00753532]
[1744418738820,0.98688692,83433.0,83432.0,0.00753532]
[1744418739032,0.98688692,83433.0,83432.0,4.69e-05]
[1744418740961,1.05449651,83433.0,83432.0,4.69e-05]
[1744418741636,0.98688692,83433.0,83432.0,4.69e-05]
[1744418745272,1.37218692,83433.0,83432.0,4.69e-05]
[1744418748555,0.93938692,83433.0,83432.0,4.69e-05]
[1744418753312,0.81854538,83433.0,83432.0,4.69e-05]
[1744418758713,0.93938692,83433.0,83432.0,4.69e-05]
[1744418764840,0.81854538,83433.0,83432.0,4.69e-05]
[1744418765444,0.81854538,83433.0,83432.0,0.00753673]
[1744418771793,0.93938692,83433.0,83432.0,0.00753673]
[1744418775427,0.57883238,83433.0,83432.0,0.24725273]
[1744418775667,0.57883238,83433.0,83432.0,0.29655273]
[1744418776042,0.57883238,83433.0,83432.0,0.34175273]
[1744418776272,0.41041815,83433.0,83432.0,0.34175273]
[1744418779964,0.011984,83442.0,83438.0,0.251681]
[1744418780177,0.051984,83442.0,83438.0,0.251681]
[1744418780390,0.051984,83442.0,83439.0,0.00748983]
[1744418781002,0.051984,83442.0,83440.0,0.00748983]
[1744418781534,0.051984,83442.0,83441.0,0.00748983]
[1744418782075,0.04,83442.0,83441.0,0.00748983]
[1744418786384,0.04840112,83442.0,83441.0,0.00748983]
[1744418792617,0.011985,83435.0,83432.0,0.0452469]
[1744418792773,0.181985,83435.0,83432.0,0.0452469]
[1744418792983,0.239712,83434.0,83432.0,0.0452469]
[1744418793170,0.419712,83434.0,83433.0,0.00748873]
[1744418795144,0.42811898,83434.0,83433.0,0.00748873]
[1744418803311,0.18840698,83434.0,83433.0,0.00748873]
[1744418804348,0.18840698,83434.0,83433.0,0.24720173]
[1744418805108,0.18840698,83434.0,83433.0,0.29680173]
[1744418805358,0.18,83434.0,83433.0,0.29680173]
[1744418806255,0.011984,83442.0,83439.0,0.251679]
[1744418806377,0.191984,83442.0,83439.0,0.251679]
[1744418806593,0.191984,83442.0,83440.0,0.00748873]
[1744418807208,0.00841395,83441.0,83440.0,0.00748873]
[1744418807419,0.06841395,83441.0,83439.0,0.251679]
[1744418807934,0.06841395,83441.0,83440.0,0.00748804]
[1744418808133,0.06,83441.0,83440.0,0.00748804]
[1744418809083,0.06841392,83441.0,83440.0,0.00748804]
[1744418822715,0.06761392,83441.0,83440.0,0.00732425]
[1744418826751,0.0592,83441.0,83440.0,0.00732425]
[1744418826944,0.23968,83445.0,83440.0,0.00732425]
[1744418826945,0.41041815,83456.0,83455.0,0.23965]
[1744418827148,0.42041815,83456.0,83455.0,0.33155]
[1744418827932,0.41041815,83456.0,83455.0,0.33155]
[1744418828114,0.0004222,83457.0,83455.0,0.33155]
[1744418835031,0.0004222,83457.0,83456.0,0.00748614]
[1744418836497,0.0004222,83457.0,83456.0,0.58196487]
[1744418836809,0.0004222,83457.0,83456.0,0.71972853]
[1744418840293,0.0131425,83460.0,83459.0,0.01454085]
[1744418840492,0.0131425,83460.0,83459.0,0.82350213]
[1744418840749,0.0131425,83460.0,83459.0,0.82110653]
[1744418841264,0.41041815,83486.0,83460.0,0.34]
[1744418841461,0.41041815,83486.0,83461.0,0.69277285]
[1744418841751,0.41041815,83486.0,83461.0,0.82110053]
[1744418841926,4e-07,83469.0,83468.0,0.239612]
[1744418842069,4e-07,83469.0,83468.0,0.80144886]
[1744418842271,4e-07,83469.0,83468.0,0.79905354]
[1744418842491,4e-07,83469.0,83468.0,0.82108053]
[1744418842905,0.0004221,83489.0,83471.0,0.579604]
[1744418843071,0.0004221,83489.0,83471.0,0.79344554]
[1744418843265,0.0004221,83489.0,83471.0,0.80093168]
[1744418843903,0.0004221,83489.0,83471.0,0.80798639]
[1744418844354,0.0004221,83489.0,83471.0,0.94810639]
[1744418846494,0.0004221,83489.0,83478.0,0.59412485]
[1744418846785,0.00246895,83479.0,83478.0,0.80796639]
[1744418848395,0.00246895,83479.0,83478.0,0.83274922]
[1744418848901,0.00246895,83479.0,83478.0,0.85656265]
[1744418850204,0.00246895,83479.0,83478.0,0.86555806]
[1744418850806,0.00246895,83479.0,83478.0,0.84174463]
[1744418853200,0.0004221,83489.0,83488.0,0.59409585]
[1744418853402,0.0004221,83489.0,83488.0,0.97280022]
[1744418853403,0.00056255,83489.0,83488.0,0.97280022]
[1744418862459,0.00056255,83489.0,83488.0,0.90201739]
[1744418862677,0.00056255,83489.0,83488.0,0.74739654]
[1744418862815,0.00056255,83489.0,83488.0,0.84043654]
[1744418863161,0.00056255,83489.0,83488.0,0.36039654]
[1744418863356,0.00056255,83489.0,83488.0,0.84043654]
[1744418863569,0.00056255,83489.0,83488.0,0.719595]
[1744418865062,0.18056255,83489.0,83485.0,0.239561]
[1744418865260,0.19253955,83489.0,83484.0,0.14004]
[1744418865516,0.011979,83479.0,83475.0,0.14004]
[1744418865820,0.0482,83478.0,83475.0,0.14004]
[1744418865967,0.00530575,83477.0,83475.0,0.14004]
[1744418866168,0.18530575,83477.0,83475.0,0.14004]
[1744418867027,0.42489175,83477.0,83475.0,0.14004]
[1744418867200,0.01198,83469.0,83462.0,0.152021]
[1744418867405,0.00518467,83468.0,83466.0,0.01198]
[1744418867615,0.17518467,83468.0,83466.0,0.01198]
[1744418868833,0.17518467,83468.0,83466.0,0.01031769]
[1744418869189,0.17518467,83468.0,83466.0,0.24993369]
[1744418872792,0.239615,83467.0,83460.0,0.251614]
[1744418872986,0.409615,83467.0,83461.0,0.14008]
[1744418873190,0.061581,83463.0,83454.0,0.251632]
[1744418873516,0.00517461,83462.0,83457.0,0.011982]
[1744418873659,0.16517461,83462.0,83459.0,0.011981]
[1744418874274,0.16517461,83462.0,83460.0,0.239635]
[1744418874703,0.15517461,83462.0,83460.0,0.24010395]
[1744418874875,0.00517461,83462.0,83460.0,0.24010395]
[1744418875077,0.011979,83475.0,83468.0,0.251592]
[1744418875265,0.0051512,83470.0,83469.0,0.239609]
[1744418875465,0.1651512,83470.0,83469.0,0.239609]
[1744418876495,0.0051512,83470.0,83469.0,0.239609]
[1744418876875,0.011979,83476.0,83473.0,0.011979]
[1744418877089,0.00515957,83475.0,83473.0,0.011979]
[1744418877298,0.16515957,83475.0,83473.0,0.011979]
[1744418878325,0.16515957,83475.0,83473.0,0.251575]
[1744418878635,0.16515957,83475.0,83473.0,0.011979]
[1744418879759,0.16515957,83475.0,83473.0,0.251574]
[1744418880373,0.16515957,83475.0,83473.0,0.011979]
[1744418880516,0.16515957,83475.0,83470.0,0.01198]
[1744418880720,0.01198,83472.0,83469.0,0.01198]
[1744418880915,0.421583,83472.0,83468.0,0.01198]
[1744418881158,0.01198,83467.0,83464.0,0.011981]
[1744418881335,0.01198,83467.0,83463.0,0.14004]
[1744418881336,0.239623,83465.0,83463.0,0.14004]
[1744418881539,0.239623,83465.0,83463.0,0.239627]
[1744418881540,0.16,83465.0,83463.0,0.239627]
[1744418881757,0.00500611,83464.0,83463.0,0.239627]
[1744418881967,0.01500611,83464.0,83463.0,0.239627]
[1744418882888,0.01500611,83464.0,83462.0,0.011981]
[1744418883910,0.01500611,83464.0,83462.0,0.251608]
[1744418884215,0.01500611,83464.0,83463.0,0.239627]
[1744418884824,0.23963,83462.0,83460.0,0.00046895]
[1744418885069,0.0049498,83461.0,83460.0,0.00046895]
[1744418885272,0.2245498,83461.0,83460.0,0.00046895]
[1744418887844,0.75580949,83461.0,83460.0,0.00046895]
[1744418888043,0.80550949,83461.0,83460.0,0.00046895]
[1744418891000,0.81387746,83461.0,83460.0,0.00046895]
[1744418891377,0.76417746,83461.0,83460.0,0.00046895]
[1744418895393,0.71457746,83461.0,83460.0,0.00046895]
[1744418895803,0.59373592,83461.0,83460.0,0.00046895]
[1744418902091,0.58878612,83461.0,83460.0,0.00046895]
[1744418904690,0.70962766,83461.0,83460.0,0.00046895]
[1744418909246,1.09692766,83461.0,83460.0,0.00046895]
[1744418912687,1.23700766,83461.0,83460.0,0.00046895]
[1744418914814,1.23700766,83461.0,83442.0,8e-07]
[1744418914815,0.78922485,83443.0,83442.0,8e-07]
[1744418914999,0.78922485,83443.0,83438.0,0.0008438]
[1744418915000,0.59423685,83439.0,83438.0,0.0008438]
[1744418915206,0.92074636,83439.0,83438.0,0.0008438]
[1744418915410,0.92985501,83439.0,83438.0,0.0008907]
[1744418916091,0.59428485,83422.0,83406.0,0.07415494]
[1744418916322,1.06250639,83422.0,83406.0,0.07415494]
[1744418916937,1.07087436,83422.0,83406.0,0.07415494]